fUST/lending_fUST_20260523
["ID","MTS","AMOUNT","RATE_DAILY","PERIOD"]
[422826648,1779477045000,-500.0,8.493e-05,2]
[422826652,1779477045000,-1370.68,8.493e-05,2]
[422826653,1779477045000,-500.0,8.493e-05,2]
[422826654,1779477045000,-225.30640717,8.493e-05,2]
[422826663,1779477045000,-841.76,8.493e-05,2]
[422826665,1779477045000,-500.0,8.493e-05,2]
[422826661,1779477045000,-500.0,8.493e-05,2]
[422826662,1779477045000,-821.21,8.493e-05,2]
[422826604,1779477045000,-1897.72,8.493e-05,2]
[422826671,1779477045000,-831.71,8.493e-05,2]
[422826672,1779477045000,-500.0,8.493e-05,2]
[422826667,1779477045000,-500.0,8.493e-05,2]
[422826670,1779477045000,-742.66,8.493e-05,2]
[422826668,1779477045000,-500.0,8.493e-05,2]
[422826642,1779477045000,-500.0,8.493e-05,2]
[422826669,1779477045000,-500.0,8.493e-05,2]
[422826659,1779477045000,-500.0,8.493e-05,2]
[422826657,1779477045000,-855.8,8.493e-05,2]
[422826658,1779477045000,-500.0,8.493e-05,2]
[422826660,1779477045000,-987.13,8.493e-05,2]
[422826656,1779477045000,-500.0,8.493e-05,2]
[422826664,1779477045000,-632.87,8.493e-05,2]
[422826666,1779477045000,-403.13321532,8.493e-05,2]
[422826639,1779477045000,-723.63,8.493e-05,2]
[422826655,1779477045000,-500.0,8.493e-05,2]
[422826638,1779477045000,-500.0,8.493e-05,2]
[422826617,1779477045000,-500.0,8.493e-05,2]
[422826614,1779477045000,-500.0,8.493e-05,2]
[422826613,1779477045000,-2002.64,8.493e-05,2]
[422826616,1779477045000,-741.35,8.493e-05,2]
[422826609,1779477045000,-500.0,8.493e-05,2]
[422826622,1779477045000,-586.33478761,8.493e-05,2]
[422826618,1779477045000,-547.88,8.493e-05,2]
[422826620,1779477045000,-500.0,8.493e-05,2]
[422826621,1779477045000,-500.0,8.493e-05,2]
[422826611,1779477045000,-638.97,8.493e-05,2]
[422826610,1779477045000,-729.34,8.493e-05,2]
[422826607,1779477045000,-592.64,8.493e-05,2]
[422826640,1779477045000,-500.0,8.493e-05,2]
[422826602,1779477045000,-500.0,8.493e-05,2]
[422826615,1779477045000,-780.12,8.493e-05,2]
[422826619,1779477045000,-500.0,8.493e-05,2]
[422826612,1779477045000,-500.0,8.493e-05,2]
[422826626,1779477045000,-633.94,8.493e-05,2]
[422826630,1779477045000,-500.0,8.493e-05,2]
[422826623,1779477045000,-881.14,8.493e-05,2]
[422826633,1779477045000,-683.36,8.493e-05,2]
[422826631,1779477045000,-501.01843245,8.493e-05,2]
[422826636,1779477045000,-891.3,8.493e-05,2]
[422826627,1779477045000,-500.0,8.493e-05,2]
[422826629,1779477045000,-500.0,8.493e-05,2]
[422826632,1779477045000,-731.53,8.493e-05,2]
[422826624,1779477045000,-800.14,8.493e-05,2]
[422826634,1779477045000,-500.0,8.493e-05,2]
[422826637,1779477045000,-801.3,8.493e-05,2]
[422826628,1779477045000,-3838.86,8.493e-05,2]
[422826625,1779477045000,-500.0,8.493e-05,2]
[422826635,1779477045000,-500.0,8.493e-05,2]
[422826691,1779477046000,-500.0,8.493e-05,2]
[422826692,1779477046000,-500.0,8.493e-05,2]
[422826696,1779477046000,-702.91,8.493e-05,2]
[422826697,1779477046000,-500.0,8.493e-05,2]
[422826706,1779477046000,-500.0,8.493e-05,2]
[422826699,1779477046000,-871.28,8.493e-05,2]
[422826698,1779477046000,-518.45483,8.493e-05,2]
[422826702,1779477046000,-781.93,8.493e-05,2]
[422826700,1779477046000,-500.0,8.493e-05,2]
[422826704,1779477046000,-500.0,8.493e-05,2]
[422826712,1779477046000,-500.0,8.493e-05,2]
[422826716,1779477046000,-2972.28,8.493e-05,2]
[422826694,1779477046000,-39095.87,8.493e-05,2]
[422826701,1779477046000,-333.72812454,8.493e-05,2]
[422826695,1779477046000,-596.19,8.493e-05,2]
[422826676,1779477046000,-518.45483,8.493e-05,2]
[422826693,1779477046000,-500.0,8.493e-05,2]
[422826685,1779477046000,-518.45483,8.493e-05,2]
[422826686,1779477046000,-577.92,8.493e-05,2]
[422826683,1779477046000,-571.97,8.493e-05,2]
[422826690,1779477046000,-560.63,8.493e-05,2]
[422826680,1779477046000,-562.43,8.493e-05,2]
[422826681,1779477046000,-518.45483,8.493e-05,2]
[422826678,1779477046000,-518.45483,8.493e-05,2]
[422826679,1779477046000,-518.45483,8.493e-05,2]
[422826674,1779477046000,-434.72381734,8.493e-05,2]
[422826673,1779477046000,-1436.63,8.493e-05,2]
[422826677,1779477046000,-500.0,8.493e-05,2]
[422826675,1779477046000,-518.45483,8.493e-05,2]
[422826713,1779477046000,-161.31810758,8.493e-05,2]
[422826688,1779477046000,-500.0,8.493e-05,2]
[422826715,1779477046000,-2402.13,8.493e-05,2]
[422826682,1779477046000,-518.45483,8.493e-05,2]
[422826703,1779477046000,-6855.54,8.493e-05,2]
[422826728,1779477046000,-5981.850699,8.493e-05,2]
[422826731,1779477046000,-5981.850699,8.493e-05,2]
[422826736,1779477046000,-5981.850699,8.493e-05,2]
[422826734,1779477046000,-500.0,8.493e-05,2]
[422826732,1779477046000,-500.0,8.493e-05,2]
[422826739,1779477046000,-500.0,8.493e-05,2]
[422826723,1779477046000,-500.0,8.493e-05,2]
[422826742,1779477046000,-1159.46161095,8.493e-05,2]
[422826730,1779477046000,-500.0,8.493e-05,2]
[422826741,1779477046000,-1831.457406,8.493e-05,2]
[422826740,1779477046000,-1831.457406,8.493e-05,2]
[422826733,1779477046000,-5981.850699,8.493e-05,2]
[422826738,1779477046000,-5010.43,8.493e-05,2]
[422826714,1779477046000,-556.65,8.493e-05,2]
[422826735,1779477046000,-841.29,8.493e-05,2]
[422826724,1779477046000,-5981.850699,8.493e-05,2]
[422826737,1779477046000,-5981.850699,8.493e-05,2]
[422826721,1779477046000,-500.0,8.493e-05,2]
[422826705,1779477046000,-500.0,8.493e-05,2]
[422826727,1779477046000,-625.13,8.493e-05,2]
[422826707,1779477046000,-500.0,8.493e-05,2]
[422826709,1779477046000,-814.74,8.493e-05,2]
[422826710,1779477046000,-2757.92,8.493e-05,2]
[422826711,1779477046000,-500.0,8.493e-05,2]
[422826717,1779477046000,-500.0,8.493e-05,2]
[422826708,1779477046000,-1942.79,8.493e-05,2]
[422826726,1779477046000,-500.0,8.493e-05,2]
[422826718,1779477046000,-500.0,8.493e-05,2]
[422826720,1779477046000,-743.91,8.493e-05,2]
[422826729,1779477046000,-5981.850699,8.493e-05,2]
[422826722,1779477046000,-500.0,8.493e-05,2]
[422826725,1779477046000,-5981.850699,8.493e-05,2]
[422826719,1779477046000,-500.0,8.493e-05,2]
[422826753,1779477047000,-470.09184847,8.493e-05,2]
[422826761,1779477047000,-559.415472,8.493e-05,2]
[422826758,1779477047000,-559.415472,8.493e-05,2]
[422826763,1779477047000,-559.415472,8.493e-05,2]
[422826757,1779477047000,-1831.457406,8.493e-05,2]
[422826752,1779477047000,-201.90394658,8.493e-05,2]
[422826754,1779477047000,-1959.46659866,8.493e-05,2]
[422826755,1779477047000,-224.26340134,8.493e-05,2]
[422826751,1779477047000,-425.0,8.219e-05,2]
[422826750,1779477047000,-500.0,8.219e-05,2]
[422826762,1779477047000,-559.415472,8.493e-05,2]
[422826756,1779477047000,-559.415472,8.493e-05,2]
[422826760,1779477047000,-554.21,8.493e-05,2]
[422826766,1779477047000,-500.0,8.493e-05,2]
[422826765,1779477047000,-500.0,8.493e-05,2]
[422826759,1779477047000,-739.67,8.493e-05,2]
[422826773,1779477047000,-335.66858032,8.493e-05,2]
[422826769,1779477047000,-236.41676113,8.493e-05,2]
[422826772,1779477047000,-164.33141968,8.493e-05,2]
[422826771,1779477047000,-1472.37,8.493e-05,2]
[422826768,1779477047000,-559.415472,8.493e-05,2]
[422826770,1779477047000,-263.58323887,8.493e-05,2]
[422826764,1779477047000,-559.415472,8.493e-05,2]
[422826776,1779477047000,-197.53931221,8.493e-05,2]
[422826767,1779477047000,-559.415472,8.493e-05,2]
[422826775,1779477047000,-938.6,8.493e-05,2]
[422826777,1779477047000,-2681.86324235,8.493e-05,2]
[422826774,1779477047000,-500.0,8.493e-05,2]
[422826778,1779477258000,491.69865061,0.00012,60]
[422826779,1779477258000,186.54712521,0.00012,60]
[422826804,1779478231000,-443.0,6.44e-05,2]
[422826803,1779478231000,-185.0,6.44e-05,2]
[422826808,1779478231000,-1138.0,7.271e-05,2]
[422826810,1779478231000,-304.13367797,7.272e-05,2]
[422826806,1779478231000,-3.31761127,7.271e-05,2]
[422826809,1779478231000,-10641.91857498,7.272e-05,2]
[422826807,1779478231000,-296.68238873,7.271e-05,2]
[422826805,1779478231000,-406.18238873,6.483e-05,2]
[422827300,1779478238000,-500.0,7.271e-05,2]
[422827303,1779478238000,-500.0,7.271e-05,2]
[422827324,1779478238000,-500.0,7.271e-05,2]
[422827305,1779478238000,-230.58973302,7.271e-05,2]
[422827307,1779478238000,-500.0,7.271e-05,2]
[422827309,1779478238000,-226.00095717,7.271e-05,2]
[422827311,1779478238000,-273.99904283,7.271e-05,2]
[422827312,1779478238000,-72.29697925,7.271e-05,2]
[422827322,1779478238000,-427.70302075,7.271e-05,2]
[422827326,1779478238000,-500.0,7.271e-05,2]
[422827340,1779478238000,-500.0,7.277e-05,2]
[422827336,1779478238000,-500.0,7.277e-05,2]
[422827338,1779478238000,-500.0,7.277e-05,2]
[422827334,1779478238000,-500.0,7.277e-05,2]
[422827330,1779478238000,-291.1844905,7.271e-05,2]
[422827332,1779478238000,-39053.94774705,7.272e-05,2]
[422827346,1779478238000,-500.0,7.277e-05,2]
[422827343,1779478238000,-500.0,7.277e-05,2]
[422827349,1779478238000,-159.9865121,7.277e-05,2]
[422827351,1779478238000,-24019.21654615,7.278e-05,2]
[422827328,1779478238000,-500.0,7.271e-05,2]
[422827413,1779478240000,-32731.11238818,7.278e-05,2]
[422827412,1779478240000,-452.70968,7.278e-05,2]
[422827426,1779478243000,-557.18407237,7.278e-05,2]
[422827425,1779478243000,-72210.39941395,7.278e-05,2]
[422827428,1779478243000,-9907.0329549,7.278e-05,2]
[422827429,1779478243000,-3797.675,7.278e-05,2]
[422827427,1779478243000,-575.41076325,7.278e-05,2]
[422827455,1779478246000,-53200.0,7.278e-05,2]
[422827451,1779478246000,-13554.37727593,7.278e-05,2]
[422827452,1779478246000,-9844.30452461,7.278e-05,2]
[422827453,1779478246000,-5070.47952164,7.278e-05,2]
[422827454,1779478246000,-1900.0,7.278e-05,2]
[422827450,1779478246000,-3278.46,7.278e-05,2]
[422827449,1779478246000,-304.0,7.278e-05,2]
[422827448,1779478246000,-7000.0,7.278e-05,2]
[422827464,1779478501000,152.0,6.813e-05,30]
[422827477,1779479372000,-365.56229211,6.374e-05,2]
[422827479,1779479372000,-200.0,6.535e-05,2]
[422827480,1779479372000,-735.269,6.568e-05,2]
[422827481,1779479372000,-185.0,6.568e-05,2]
[422827478,1779479372000,-407.76713098,6.471e-05,2]
[422827483,1779479372000,-456.6596809,6.666e-05,2]
[422827486,1779479372000,-300.0,6.873e-05,2]
[422827485,1779479372000,-274.4996921,6.668e-05,2]
[422827484,1779479372000,-456.643312,6.668e-05,2]
[422827487,1779479372000,-12116.25871291,6.874e-05,2]
[422827482,1779479372000,-443.0,6.568e-05,2]
[422827547,1779479432000,-300.0,6.871e-05,2]
[422827543,1779479432000,-300.0,6.871e-05,2]
[422827545,1779479432000,-300.0,6.871e-05,2]
[422827553,1779479432000,-338.712,6.872e-05,2]
[422827549,1779479432000,-1200.0,6.871e-05,2]
[422827541,1779479432000,-300.0,6.871e-05,2]
[422827555,1779479432000,-7571.0,6.872e-05,2]
[422827557,1779479432000,-1466.30417787,6.872e-05,2]
[422827561,1779479432000,-40222.85448449,6.872e-05,2]
[422827563,1779479432000,-399.61178836,6.873e-05,2]
[422827565,1779479432000,-186777.53372711,6.874e-05,2]
[422827551,1779479432000,-401.12933764,6.872e-05,2]
[422827739,1779479440000,-451.42232,6.874e-05,2]
[422827767,1779479442000,-300.0,7.626e-05,2]
[422827765,1779479442000,-300.0,7.626e-05,2]
[422827763,1779479442000,-300.0,7.626e-05,2]
[422827762,1779479442000,-299.0,7.558e-05,2]
[422827761,1779479442000,-500.0,7.501e-05,2]
[422827760,1779479442000,-176.98226469,7.477e-05,2]
[422827756,1779479442000,-74880.83620462,6.976e-05,2]
[422827759,1779479442000,-3016.5075121,7.289e-05,2]
[422827758,1779479442000,-800.0,7.27e-05,2]
[422827764,1779479442000,-300.0,7.626e-05,2]
[422827754,1779479442000,-245487.17414357,6.874e-05,2]
[422827753,1779479442000,-2140.15071822,6.874e-05,2]
[422827768,1779479442000,-300.0,7.626e-05,2]
[422827757,1779479442000,-325.954,7.071e-05,2]
[422827773,1779479442000,-300.0,7.626e-05,2]
[422827755,1779479442000,-534701.08931801,6.874e-05,2]
[422827766,1779479442000,-300.0,7.626e-05,2]
[422827776,1779479442000,-300.0,7.626e-05,2]
[422827783,1779479442000,-160.0,7.679e-05,2]
[422827781,1779479442000,-766.56709688,7.679e-05,2]
[422827779,1779479442000,-160.0,7.679e-05,2]
[422827778,1779479442000,-600.0,7.626e-05,2]
[422827782,1779479442000,-161.72364698,7.679e-05,2]
[422827777,1779479442000,-300.0,7.626e-05,2]
[422827780,1779479442000,-160.0,7.679e-05,2]
[422827775,1779479442000,-300.0,7.626e-05,2]
[422827772,1779479442000,-300.0,7.626e-05,2]
[422827769,1779479442000,-300.0,7.626e-05,2]
[422827770,1779479442000,-300.0,7.626e-05,2]
[422827771,1779479442000,-300.0,7.626e-05,2]
[422827774,1779479442000,-300.0,7.626e-05,2]
[422827784,1779479442000,-160.0,7.679e-05,2]
[422827831,1779479443000,-871.89,8.219e-05,2]
[422827829,1779479443000,-500.0,8.219e-05,2]
[422827828,1779479443000,-500.0,8.219e-05,2]
[422827832,1779479443000,-500.0,8.219e-05,2]
[422827825,1779479443000,-500.0,8.219e-05,2]
[422827827,1779479443000,-599.17890979,8.219e-05,2]
[422827826,1779479443000,-500.0,8.219e-05,2]
[422827823,1779479443000,-500.0,8.219e-05,2]
[422827833,1779479443000,-500.0,8.219e-05,2]
[422827824,1779479443000,-678.03,8.219e-05,2]
[422827837,1779479443000,-500.0,8.219e-05,2]
[422827847,1779479443000,-500.0,8.219e-05,2]
[422827838,1779479443000,-500.0,8.219e-05,2]
[422827840,1779479443000,-500.0,8.219e-05,2]
[422827839,1779479443000,-500.0,8.219e-05,2]
[422827841,1779479443000,-500.0,8.219e-05,2]
[422827845,1779479443000,-500.3,8.219e-05,2]
[422827843,1779479443000,-574.06,8.219e-05,2]
[422827822,1779479443000,-1025.7,8.219e-05,2]
[422827849,1779479443000,-500.0,8.219e-05,2]
[422827858,1779479443000,-841.95,8.219e-05,2]
[422827857,1779479443000,-2107.05,8.219e-05,2]
[422827859,1779479443000,-750.79,8.219e-05,2]
[422827835,1779479443000,-836.22,8.219e-05,2]
[422827818,1779479443000,-500.0,8.219e-05,2]
[422827809,1779479443000,-510.26,8.219e-05,2]
[422827817,1779479443000,-500.0,8.219e-05,2]
[422827785,1779479443000,-917.32432442,8e-05,2]
[422827791,1779479443000,-524.3,8.219e-05,2]
[422827786,1779479443000,-917.32432441,8e-05,2]
[422827788,1779479443000,-2720.8982,8.219e-05,2]
[422827789,1779479443000,-500.0,8.219e-05,2]
[422827787,1779479443000,-2231.466,8.219e-05,2]
[422827792,1779479443000,-500.0,8.219e-05,2]
[422827793,1779479443000,-500.0,8.219e-05,2]
[422827795,1779479443000,-500.0,8.219e-05,2]
[422827805,1779479443000,-500.0,8.219e-05,2]
[422827797,1779479443000,-500.0,8.219e-05,2]
[422827815,1779479443000,-500.0,8.219e-05,2]
[422827799,1779479443000,-644.34,8.219e-05,2]
[422827801,1779479443000,-681.92,8.219e-05,2]
[422827794,1779479443000,-546.51,8.219e-05,2]
[422827807,1779479443000,-500.0,8.219e-05,2]
[422827803,1779479443000,-500.0,8.219e-05,2]
[422827796,1779479443000,-513.91,8.219e-05,2]
[422827863,1779479443000,-500.0,8.219e-05,2]
[422827811,1779479443000,-500.0,8.219e-05,2]
[422827813,1779479443000,-1382.34,8.219e-05,2]
[422827819,1779479443000,-500.0,8.219e-05,2]
[422827820,1779479443000,-500.0,8.219e-05,2]
[422827821,1779479443000,-2063.32,8.219e-05,2]
[422827798,1779479443000,-500.0,8.219e-05,2]
[422827861,1779479443000,-500.0,8.219e-05,2]
[422827830,1779479443000,-382.68729166,8.219e-05,2]
[422827860,1779479443000,-555.44,8.219e-05,2]
[422827893,1779479443000,-858.58,8.219e-05,2]
[422827895,1779479443000,-500.0,8.219e-05,2]
[422827896,1779479443000,-500.0,8.219e-05,2]
[422827897,1779479443000,-500.0,8.219e-05,2]
[422827898,1779479443000,-500.0,8.219e-05,2]
[422827894,1779479443000,-500.0,8.219e-05,2]
[422827900,1779479443000,-1675.79,8.219e-05,2]
[422827899,1779479443000,-603.88,8.219e-05,2]
[422827902,1779479443000,-500.0,8.219e-05,2]
[422827903,1779479443000,-921.8,8.219e-05,2]
[422827905,1779479443000,-500.0,8.219e-05,2]
[422827889,1779479443000,-576.97,8.219e-05,2]
[422827915,1779479443000,-500.0,8.219e-05,2]
[422827906,1779479443000,-507.68,8.219e-05,2]
[422827907,1779479443000,-1079.08,8.219e-05,2]
[422827908,1779479443000,-283.60911718,8.219e-05,2]
[422827909,1779479443000,-500.0,8.219e-05,2]
[422827912,1779479443000,-500.0,8.219e-05,2]
[422827913,1779479443000,-500.0,8.219e-05,2]
[422827911,1779479443000,-500.0,8.219e-05,2]
[422827910,1779479443000,-500.0,8.219e-05,2]
[422827914,1779479443000,-500.0,8.219e-05,2]
[422827916,1779479443000,-500.0,8.219e-05,2]
[422827850,1779479443000,-392.15518838,8.219e-05,2]
[422827904,1779479443000,-695.6,8.219e-05,2]
[422827891,1779479443000,-773.59,8.219e-05,2]
[422827901,1779479443000,-500.0,8.219e-05,2]
[422827887,1779479443000,-423.35499379,8.219e-05,2]
[422827864,1779479443000,-749.53,8.219e-05,2]
[422827888,1779479443000,-684.48,8.219e-05,2]
[422827852,1779479443000,-607.81,8.219e-05,2]
[422827856,1779479443000,-593.19,8.219e-05,2]
[422827866,1779479443000,-822.99,8.219e-05,2]
[422827868,1779479443000,-500.0,8.219e-05,2]
[422827870,1779479443000,-500.0,8.219e-05,2]
[422827873,1779479443000,-755.56,8.219e-05,2]
[422827872,1779479443000,-500.0,8.219e-05,2]
[422827878,1779479443000,-572.97,8.219e-05,2]
[422827875,1779479443000,-500.0,8.219e-05,2]
[422827877,1779479443000,-500.0,8.219e-05,2]
[422827880,1779479443000,-1000.0,8.219e-05,2]
[422827854,1779479443000,-606.61164051,8.219e-05,2]
[422827879,1779479443000,-500.0,8.219e-05,2]
[422827876,1779479443000,-805.2,8.219e-05,2]
[422827885,1779479443000,-361.2370534,8.219e-05,2]
[422827886,1779479443000,-500.0,8.219e-05,2]
[422827884,1779479443000,-500.0,8.219e-05,2]
[422827883,1779479443000,-500.0,8.219e-05,2]
[422827890,1779479443000,-500.0,8.219e-05,2]
[422827882,1779479443000,-500.0,8.219e-05,2]
[422827892,1779479443000,-500.0,8.219e-05,2]
[422827874,1779479443000,-500.0,8.219e-05,2]
[422827881,1779479443000,-500.0,8.219e-05,2]
[422827946,1779479444000,-500.0,8.219e-05,2]
[422827956,1779479444000,-500.0,8.219e-05,2]
[422827940,1779479444000,-500.0,8.219e-05,2]
[422827950,1779479444000,-591.17,8.219e-05,2]
[422827952,1779479444000,-500.0,8.219e-05,2]
[422827949,1779479444000,-500.0,8.219e-05,2]
[422827951,1779479444000,-500.0,8.219e-05,2]
[422827953,1779479444000,-500.0,8.219e-05,2]
[422827948,1779479444000,-500.0,8.219e-05,2]
[422827954,1779479444000,-1933.79,8.219e-05,2]
[422827959,1779479444000,-974.9,8.219e-05,2]
[422827958,1779479444000,-500.0,8.219e-05,2]
[422827964,1779479444000,-500.0,8.219e-05,2]
[422827955,1779479444000,-500.0,8.219e-05,2]
[422827961,1779479444000,-508.73,8.219e-05,2]
[422827963,1779479444000,-4118.52,8.219e-05,2]
[422827971,1779479444000,-297.42535722,8.219e-05,2]
[422827960,1779479444000,-500.0,8.219e-05,2]
[422827965,1779479444000,-500.0,8.219e-05,2]
[422827970,1779479444000,-500.0,8.219e-05,2]
[422827972,1779479444000,-560.94,8.219e-05,2]
[422827968,1779479444000,-500.0,8.219e-05,2]
[422827962,1779479444000,-592.09759767,8.219e-05,2]
[422827945,1779479444000,-500.0,8.219e-05,2]
[422827957,1779479444000,-604.03,8.219e-05,2]
[422827943,1779479444000,-500.0,8.219e-05,2]
[422827919,1779479444000,-720.03,8.219e-05,2]
[422827947,1779479444000,-500.0,8.219e-05,2]
[422827966,1779479444000,-604.89,8.219e-05,2]
[422827918,1779479444000,-500.0,8.219e-05,2]
[422827917,1779479444000,-1684.78,8.219e-05,2]
[422827920,1779479444000,-500.0,8.219e-05,2]
[422827922,1779479444000,-737.68,8.219e-05,2]
[422827924,1779479444000,-500.0,8.219e-05,2]
[422827923,1779479444000,-701.9,8.219e-05,2]
[422827921,1779479444000,-500.0,8.219e-05,2]
[422827925,1779479444000,-500.0,8.219e-05,2]
[422827926,1779479444000,-732.14,8.219e-05,2]
[422827931,1779479444000,-500.0,8.219e-05,2]
[422827934,1779479444000,-500.0,8.219e-05,2]
[422827928,1779479444000,-500.0,8.219e-05,2]
[422827927,1779479444000,-1216.7,8.219e-05,2]
[422827938,1779479444000,-500.0,8.219e-05,2]
[422827937,1779479444000,-1889.48,8.219e-05,2]
[422827930,1779479444000,-500.0,8.219e-05,2]
[422827933,1779479444000,-500.0,8.219e-05,2]
[422827936,1779479444000,-769.16,8.219e-05,2]
[422827935,1779479444000,-500.0,8.219e-05,2]
[422827929,1779479444000,-1850.42,8.219e-05,2]
[422827932,1779479444000,-500.0,8.219e-05,2]
[422827939,1779479444000,-588.68450734,8.219e-05,2]
[422827941,1779479444000,-647.25,8.219e-05,2]
[422827944,1779479444000,-500.0,8.219e-05,2]
[422827942,1779479444000,-500.0,8.219e-05,2]
[422827973,1779479444000,-1170.2,8.219e-05,2]
[422827991,1779479444000,-500.0,8.219e-05,2]
[422827975,1779479444000,-606.56,8.219e-05,2]
[422828004,1779479444000,-672.79,8.219e-05,2]
[422828003,1779479444000,-762.4,8.219e-05,2]
[422828002,1779479444000,-626.41,8.219e-05,2]
[422828017,1779479444000,-500.0,8.219e-05,2]
[422828018,1779479444000,-500.0,8.219e-05,2]
[422828008,1779479444000,-879.47,8.219e-05,2]
[422828019,1779479444000,-500.0,8.219e-05,2]
[422828009,1779479444000,-500.0,8.219e-05,2]
[422828014,1779479444000,-500.0,8.219e-05,2]
[422828013,1779479444000,-500.0,8.219e-05,2]
[422828011,1779479444000,-2419.69,8.219e-05,2]
[422828010,1779479444000,-500.0,8.219e-05,2]
[422828016,1779479444000,-680.77,8.219e-05,2]
[422828012,1779479444000,-500.0,8.219e-05,2]
[422828026,1779479444000,-746.84,8.219e-05,2]
[422828021,1779479444000,-500.0,8.219e-05,2]
[422828025,1779479444000,-862.34,8.219e-05,2]
[422828027,1779479444000,-500.0,8.219e-05,2]
[422828020,1779479444000,-784.48,8.219e-05,2]
[422828022,1779479444000,-500.0,8.219e-05,2]
[422828024,1779479444000,-771.61,8.219e-05,2]
[422828030,1779479444000,-500.0,8.219e-05,2]
[422828023,1779479444000,-500.0,8.219e-05,2]
[422828028,1779479444000,-500.0,8.219e-05,2]
[422827974,1779479444000,-587.36,8.219e-05,2]
[422828005,1779479444000,-752.78,8.219e-05,2]
[422828007,1779479444000,-1285.76,8.219e-05,2]
[422828015,1779479444000,-500.0,8.219e-05,2]
[422828001,1779479444000,-500.0,8.219e-05,2]
[422827976,1779479444000,-1146.88,8.219e-05,2]
[422828006,1779479444000,-998.91,8.219e-05,2]
[422827982,1779479444000,-817.02,8.219e-05,2]
[422827980,1779479444000,-3539.79,8.219e-05,2]
[422827977,1779479444000,-1792.55,8.219e-05,2]
[422827978,1779479444000,-679.58,8.219e-05,2]
[422827981,1779479444000,-601.94,8.219e-05,2]
[422827983,1779479444000,-502.55340743,8.219e-05,2]
[422827985,1779479444000,-500.0,8.219e-05,2]
[422827995,1779479444000,-733.46,8.219e-05,2]
[422827984,1779479444000,-500.0,8.219e-05,2]
[422827986,1779479444000,-476.57965662,8.219e-05,2]
[422827987,1779479444000,-500.0,8.219e-05,2]
[422827979,1779479444000,-820.89,8.219e-05,2]
[422827988,1779479444000,-500.0,8.219e-05,2]
[422828029,1779479444000,-739.19,8.219e-05,2]
[422827998,1779479444000,-500.0,8.219e-05,2]
[422827999,1779479444000,-215.36896233,8.219e-05,2]
[422827997,1779479444000,-697.6,8.219e-05,2]
[422827996,1779479444000,-861.75,8.219e-05,2]
[422828000,1779479444000,-500.0,8.219e-05,2]
[422827993,1779479444000,-500.0,8.219e-05,2]
[422827989,1779479444000,-500.0,8.219e-05,2]
[422827994,1779479444000,-500.0,8.219e-05,2]
[422827990,1779479444000,-500.0,8.219e-05,2]
[422827992,1779479444000,-500.0,8.219e-05,2]
[422828042,1779479445000,-716.77,8.219e-05,2]
[422828046,1779479445000,-1100.6,8.219e-05,2]
[422828049,1779479445000,-500.0,8.219e-05,2]
[422828053,1779479445000,-347.91141809,8.219e-05,2]
[422828047,1779479445000,-500.0,8.219e-05,2]
[422828051,1779479445000,-518.32,8.219e-05,2]
[422828048,1779479445000,-500.0,8.219e-05,2]
[422828050,1779479445000,-695.56,8.219e-05,2]
[422828043,1779479445000,-529.76,8.219e-05,2]
[422828044,1779479445000,-549.14,8.219e-05,2]
[422828038,1779479445000,-500.0,8.219e-05,2]
[422828041,1779479445000,-581.51,8.219e-05,2]
[422828039,1779479445000,-500.0,8.219e-05,2]
[422828040,1779479445000,-500.0,8.219e-05,2]
[422828037,1779479445000,-500.0,8.219e-05,2]
[422828036,1779479445000,-215.58082886,8.219e-05,2]
[422828035,1779479445000,-284.41917114,8.219e-05,2]
[422828034,1779479445000,-500.0,8.219e-05,2]
[422828033,1779479445000,-500.0,8.219e-05,2]
[422828032,1779479445000,-630.72119947,8.219e-05,2]
[422828031,1779479445000,-500.0,8.219e-05,2]
[422828055,1779479445000,-3220.48775306,8.219e-05,2]
[422828045,1779479445000,-500.0,8.219e-05,2]
[422828052,1779479445000,-500.0,8.219e-05,2]